bitfinex-derivatives/quotes_SOLF0:USTF0_20251119
["timestamp","ask_amount","ask_price","bid_price","bid_amount"]
[1763585374072,6.7995,132.52,132.46,3.36]
[1763585374268,15.92,132.53,132.46,3.36]
[1763585374470,0.05110837,132.5,132.48,3.41425215]
[1763585380480,0.05110837,132.5,132.48,0.05425215]
[1763585380481,6.85120837,132.5,132.48,0.05425215]
[1763585380669,6.85120837,132.5,132.48,3.24425215]
[1763585381267,0.05110837,132.5,132.48,3.24425215]
[1763585382370,0.05110837,132.5,132.48,0.05425215]
[1763585383775,6.85130837,132.5,132.48,0.05425215]
[1763585384478,6.8006,132.49,132.48,0.05425215]
[1763585385381,0.05110837,132.5,132.48,0.05425215]
[1763585385878,6.8006,132.49,132.48,0.05425215]
[1763585386178,105.7986,132.48,132.42,3.19]
[1763585386375,6.8031,132.45,132.42,3.19]
[1763585387273,6.85261149,132.45,132.42,3.2396687]
[1763585387480,0.04951149,132.45,132.42,3.2396687]
[1763585387678,0.04951149,132.45,132.42,0.0496687]
[1763585387879,0.04951149,132.45,132.42,3.2396687]
[1763585388083,15.96951149,132.45,132.42,3.2396687]
[1763585388382,15.96951149,132.45,132.42,0.0496687]
[1763585388879,15.96951149,132.45,132.42,3.2396687]
[1763585389180,15.96951149,132.45,132.42,0.0496687]
[1763585389780,15.96951149,132.45,132.42,3.2396687]
[1763585390378,15.96951149,132.45,132.42,0.0496687]
[1763585391274,15.96951149,132.45,132.42,3.2396687]
[1763585392682,22.77221149,132.45,132.42,3.2396687]
[1763585394777,22.77221149,132.45,132.42,0.0496687]
[1763585394982,15.96951149,132.45,132.42,0.0496687]
[1763585395290,22.9916014,132.45,132.42,0.0496687]
[1763585395589,6.8037,132.43,132.42,0.0496687]
[1763585395885,7.02208991,132.44,132.36,9.9973]
[1763585396085,105.8359,132.43,132.36,3.19]
[1763585396874,0.05782429,132.41,132.38,0.0544292]
[1763585397186,15.92,132.4,132.38,0.0544292]
[1763585397887,22.7253,132.4,132.38,0.0544292]
[1763585398489,6.8057,132.39,132.38,0.0544292]
[1763585399287,6.8067,132.38,132.33,3.19]
[1763585399590,15.92,132.4,132.33,3.19]
[1763585400187,121.7826,132.4,132.33,3.19]
[1763585400393,6.90937518,132.38,132.35,0.05535724]
[1763585400696,7.02208991,132.37,132.35,3.2451519]
[1763585400898,0.05560459,132.38,132.35,3.2451519]
[1763585401191,0.05560459,132.38,132.37,3.19]
[1763585401791,0.05560459,132.38,132.35,3.2451519]
[1763585402189,0.05560459,132.38,132.37,3.19]
[1763585402391,15.92,132.43,132.38,3.19]
[1763585402792,7.02208991,132.47,132.39,3.19]
[1763585402993,22.94208991,132.49,132.39,3.19]
[1763585403401,0.05184391,132.45,132.43,0.05447381]
[1763585403697,0.05184391,132.45,132.43,3.24447381]
[1763585404291,0.05184391,132.45,132.43,0.05447381]
[1763585405001,0.05184391,132.45,132.43,3.24447381]
[1763585405490,0.05184391,132.45,132.43,0.05447381]
[1763585406097,105.87214391,132.45,132.37,3.19]
[1763585406285,6.8035,132.44,132.37,3.19]
[1763585406690,121.7371,132.46,132.37,3.19]
[1763585406889,15.92,132.46,132.37,3.19]
[1763585407100,0.0518169,132.43,132.4,0.05772445]
[1763585407301,0.0518169,132.43,132.4,3.24772445]
[1763585408496,29.59283652,132.5,132.42,3.3]
[1763585408898,22.7404,132.5,132.42,3.3]
[1763585409203,15.94,132.5,132.42,3.3]
[1763585409403,0.05130566,132.47,132.45,3.35299861]
[1763585410307,0.00130566,132.47,132.45,3.35299861]
[1763585410602,6.7987,132.53,132.45,3.35299861]
[1763585410794,22.94208991,132.55,132.45,3.3]
[1763585411295,22.94208991,132.55,132.48,3.3]
[1763585411296,15.92,132.55,132.48,3.3]
[1763585411492,15.92,132.55,132.51,3.3]
[1763585411493,0.05230581,132.53,132.51,3.3]
[1763585411796,13.87452643,132.59,132.51,3.3]
[1763585412204,20.67022643,132.59,132.51,3.3]
[1763585412806,0.05346552,132.56,132.54,0.0492324]
[1763585413300,0.05346552,132.56,132.48,3.3]
[1763585413301,15.99346552,132.56,132.48,3.3]
[1763585413503,15.94,132.56,132.49,3.3]
[1763585413703,7.02208991,132.59,132.49,3.3]
[1763585413906,13.81788991,132.59,132.49,3.3]
[1763585414104,7.02208991,132.6,132.53,0.05016107]
[1763585414300,22.79243652,132.61,132.53,3.3]
[1763585414502,0.05568467,132.58,132.55,3.35538084]
[1763585414901,0.05568467,132.58,132.55,0.05538084]
[1763585416105,0.05568467,132.58,132.55,3.35538084]
[1763585416300,0.05568467,132.58,132.55,0.05538084]
[1763585416909,0.05568467,132.58,132.55,3.35538084]
[1763585417901,105.77478467,132.58,132.55,0.05538084]
[1763585418503,0.05568467,132.58,132.55,0.05538084]
[1763585418912,0.05568467,132.58,132.55,3.35538084]
[1763585421808,6.7943,132.62,132.55,3.35538084]
[1763585422308,6.7932,132.64,132.57,3.3]
[1763585422811,122.90811218,132.66,132.58,3.3]
[1763585423116,0.04966135,132.63,132.61,0.05290822]
[1763585423615,0.04966135,132.63,132.61,3.35290822]
[1763585423915,15.94,132.7,132.61,3.35290822]
[1763585424105,15.94,132.7,132.62,3.3]
[1763585424510,105.6294,132.69,132.62,3.3]
[1763585424710,105.6523,132.66,132.58,3.3]
[1763585425008,0.05747874,132.63,132.61,0.0511721]
[1763585426016,6.85117874,132.63,132.61,0.0511721]
[1763585427211,0.05747874,132.63,132.61,0.0511721]
[1763585427814,6.85117874,132.63,132.61,0.0511721]
[1763585428014,105.73427874,132.63,132.55,3.23]
[1763585428209,105.6768,132.63,132.55,3.23]
[1763585428416,105.6743,132.64,132.55,3.23]
[1763585428615,121.6237,132.65,132.55,3.23]
[1763585428813,105.6704,132.64,132.55,3.23]
[1763585429115,0.05167669,132.61,132.58,0.05097288]
[1763585429917,0.05167669,132.61,132.58,3.28097288]
[1763585431606,105.6322,132.69,132.6,3.23]
[1763585431921,15.94,132.7,132.6,3.23]
[1763585432126,6.7907,132.69,132.61,3.23]
[1763585432412,15.94,132.7,132.63,3.23]
[1763585432619,0.05545518,132.68,132.65,3.27827148]
[1763585433817,105.5755,132.76,132.65,3.27827148]
[1763585433818,1.3120193,132.73,132.65,3.27827148]
[1763585434016,15.96,132.75,132.67,3.23]
[1763585434311,17.27172258,132.75,132.67,3.23]
[1763585434913,0.04876529,132.72,132.7,0.05774167]
[1763585435120,0.04876529,132.72,132.7,3.28774167]
[1763585437723,0.04876529,132.72,132.7,0.05774167]
[1763585439319,0.04876529,132.72,132.7,3.34774167]
[1763585439821,0.04876529,132.72,132.7,0.05774167]
[1763585440018,0.04876529,132.72,132.7,3.34774167]
[1763585440719,10.71009918,132.79,132.7,3.34774167]
[1763585440908,105.5573,132.78,132.7,3.29]
[1763585441722,0.05629217,132.75,132.73,0.05517237]
[1763585442111,0.05629217,132.75,132.74,3.29]
[1763585443317,0.05629217,132.75,132.73,3.34517237]
[1763585443819,0.05629217,132.75,132.73,0.05517237]
[1763585444626,6.84369217,132.75,132.73,0.05517237]
[1763585444818,0.05629217,132.75,132.73,3.34517237]
[1763585445121,0.05629217,132.75,132.73,0.05517237]
[1763585445324,6.84369217,132.75,132.73,0.05517237]
[1763585446724,6.7889,132.72,132.67,3.29]
[1763585446923,105.568,132.77,132.67,3.29]
[1763585447227,105.5922,132.74,132.67,3.29]
[1763585447420,105.6131,132.71,132.63,3.29]
[1763585447626,105.6131,132.71,132.56,13.5934]
[1763585447627,105.6456,132.67,132.56,3.29]
[1763585447922,0.05091841,132.63,132.6,0.05065408]
[1763585448134,0.05091841,132.63,132.61,3.29]
[1763585449111,0.05091841,132.63,132.6,0.05065408]
[1763585450329,0.05091841,132.63,132.6,3.34065408]
[1763585450918,0.05091841,132.63,132.61,3.29]
[1763585452227,15.94,132.68,132.61,3.29]
[1763585453226,0.05019594,132.66,132.64,3.29]
[1763585456025,0.05019594,132.66,132.63,3.33793851]
[1763585457329,0.05019594,132.66,132.63,0.04793851]
[1763585457623,6.84229594,132.66,132.63,0.04793851]
[1763585458725,0.05019594,132.66,132.63,0.04793851]
[1763585459815,0.05019594,132.66,132.63,3.33793851]
[1763585460423,0.05019594,132.66,132.63,0.04793851]
[1763585460613,7.07228585,132.66,132.63,0.04793851]
[1763585460817,0.05019594,132.66,132.63,3.33793851]
[1763585461225,0.05019594,132.66,132.64,6.7928]
[1763585461421,15.92,132.7,132.65,3.29]
[1763585461827,6.791,132.68,132.61,10.0844]
[1763585462023,22.94208991,132.7,132.62,3.29]
[1763585462228,15.92,132.7,132.63,3.29]
[1763585462428,0.04917916,132.67,132.66,3.29]
[1763585462621,7.02208991,132.72,132.66,3.29]
[1763585462824,7.02208991,132.74,132.66,3.29]
[1763585463030,7.02208991,132.74,132.67,3.29]
[1763585463428,6.7886,132.73,132.67,3.29]
[1763585463729,0.0465295,132.71,132.69,0.04964499]
[1763585464124,105.6590295,132.71,132.69,0.04964499]
[1763585464323,23.00861941,132.71,132.69,0.04964499]
[1763585464526,15.9865295,132.71,132.69,0.04964499]
[1763585464727,22.7761295,132.71,132.69,0.04964499]
[1763585465230,15.9865295,132.71,132.69,0.04964499]
[1763585465430,0.0465295,132.71,132.69,3.33964499]
[1763585469734,0.0465295,132.71,132.69,0.04964499]
[1763585470541,0.0465295,132.71,132.69,3.28964499]
[1763585471133,15.94,132.76,132.69,3.28964499]
[1763585471352,15.94,132.76,132.71,3.24]
[1763585471648,7.02208991,132.82,132.73,3.24]
[1763585472041,7.02208991,132.82,132.75,3.24]
[1763585472242,7.02208991,132.84,132.77,3.29141092]
[1763585472745,24.2729725,132.85,132.78,3.24]
[1763585473049,24.2729725,132.85,132.8,3.29772101]
[1763585473050,17.25088259,132.85,132.8,3.29772101]
[1763585473443,22.7224,132.85,132.8,3.29772101]
[1763585473642,15.94,132.85,132.8,3.29772101]
[1763585473849,112.53128991,132.84,132.8,0.05772101]
[1763585474051,105.5092,132.84,132.8,0.05772101]
[1763585474349,105.5332,132.81,132.73,3.24]
[1763585474647,112.54288991,132.83,132.73,3.24]
[1763585474949,6.7849,132.8,132.73,3.24]
[1763585475450,0.04807236,132.78,132.76,3.24]
[1763585476244,6.7838,132.82,132.76,3.24]
[1763585477244,6.7838,132.82,132.78,3.29411411]
[1763585477754,6.783,132.84,132.78,3.29411411]
[1763585478546,6.7833,132.83,132.78,3.29411411]
[1763585478748,15.94,132.85,132.78,3.29411411]
[1763585479045,6.7828,132.84,132.78,3.29411411]
[1763585479241,15.94,132.85,132.78,3.29411411]
[1763585479743,128.42748991,132.9,132.81,3.24]
[1763585479943,105.4708,132.89,132.84,0.04781587]
[1763585480140,1.31033963,132.89,132.84,3.28781587]
[1763585480849,105.4776,132.88,132.84,0.04781587]
[1763585481150,105.4869,132.87,132.84,0.04781587]
[1763585481345,6.7818,132.86,132.84,0.04781587]
[1763585481748,105.5092,132.84,132.78,3.24]
[1763585482148,6.784,132.82,132.78,3.24]
[1763585482851,0.0546393,132.81,132.79,0.05135325]
[1763585483048,0.0546393,132.81,132.79,3.29135325]
[1763585483440,15.94,132.85,132.79,3.29135325]
[1763585484545,22.7223,132.85,132.79,3.29135325]
[1763585484952,15.94,132.85,132.8,3.24]
[1763585485146,6.7823,132.85,132.8,3.24]
[1763585485541,105.494,132.86,132.8,3.24]
[1763585485745,105.494,132.86,132.82,0.04774199]
[1763585486346,6.7829,132.84,132.82,0.04774199]
[1763585486553,105.522,132.83,132.76,3.15]
[1763585486751,15.94,132.88,132.76,3.15]
[1763585486941,121.4208,132.88,132.79,3.15]
[1763585487146,15.94,132.88,132.79,3.15]
[1763585487456,6.7813,132.87,132.81,3.15]
[1763585487655,0.04896884,132.85,132.83,0.05046421]
[1763585487847,0.04896884,132.85,132.83,3.20046421]
[1763585490649,1.31024096,132.91,132.83,3.20046421]
[1763585490856,1.31024096,132.91,132.83,3.15]
[1763585491153,15.94,132.93,132.85,3.15]
[1763585491651,15.94,132.93,132.88,0.05135207]
[1763585491853,1.3099697,132.94,132.88,3.20135207]
[1763585492155,6.7,133.01,132.91,3.15]
[1763585492352,1.3093536,132.99,132.89,6.7801]
[1763585492650,1.3093536,132.99,132.93,0.05606617]
[1763585492855,6.80117396,132.98,132.93,0.05606617]
[1763585493054,105.406,132.97,132.93,0.05606617]
[1763585494056,6.7773,132.95,132.93,0.05606617]
[1763585494365,105.4462,132.92,132.84,3.15]
[1763585494662,6.7788,132.92,132.85,3.15]
[1763585495152,22.74117396,132.94,132.85,3.15]
[1763585495458,0.04965907,132.91,132.88,0.05304754]
[1763585495655,0.04965907,132.91,132.88,3.20304754]
[1763585495957,0.04965907,132.91,132.89,3.15]
[1763585496457,106.7022536,132.99,132.9,3.15]
[1763585496854,6.7773,132.95,132.87,9.9309]
[1763585497459,6.7773,132.95,132.9,0.05283296]
[1763585498058,6.7778,132.94,132.9,0.05283296]
[1763585499449,105.3473,133.05,132.93,3.22]
[1763585499759,15.94,133.04,132.98,0.05475662]
[1763585499954,6.80117396,133.02,132.98,0.05475662]
[1763585500355,112.19287396,132.99,132.9,3.22]
[1763585500548,121.3415,132.98,132.9,3.22]
[1763585500754,105.43,132.94,132.86,3.22]
[1763585500962,121.37,132.94,132.86,3.22]
[1763585501159,6.779,132.92,132.86,3.22]
[1763585501456,0.05742412,132.9,132.88,0.05247292]
[1763585502265,6.83732412,132.9,132.88,0.05247292]
[1763585502460,105.4699,132.89,132.78,3.22]
[1763585502862,6.7818,132.86,132.78,3.22]
[1763585503458,6.7806,132.89,132.8,3.22]
[1763585503665,0.05008124,132.86,132.83,3.27503211]
[1763585505566,0.05008124,132.86,132.83,0.05503211]
[1763585505863,0.05008124,132.86,132.83,3.27503211]
[1763585506364,0.05008124,132.86,132.83,0.05503211]
[1763585506665,6.83208124,132.86,132.83,0.05503211]
[1763585506865,0.05008124,132.86,132.83,0.05503211]
[1763585507268,6.7824,132.85,132.83,0.05503211]
[1763585507763,15.99008124,132.86,132.83,0.05503211]
[1763585508669,22.77198124,132.86,132.83,0.05503211]
[1763585509069,15.99008124,132.86,132.83,0.05503211]
[1763585510169,22.77188124,132.86,132.83,0.05503211]
[1763585511272,0.05008124,132.86,132.83,3.27503211]
[1763585511960,0.05008124,132.86,132.83,10.05813211]
[1763585512265,0.05008124,132.86,132.84,3.22]
[1763585513774,0.05008124,132.86,132.84,10.0025]
[1763585514477,0.05008124,132.86,132.85,3.22]
[1763585515377,0.05008124,132.86,132.83,3.27503211]
[1763585516078,15.94,132.93,132.83,3.27503211]
[1763585516280,15.94,132.93,132.83,3.22]
[1763585516467,15.94,132.93,132.85,6.7817]
[1763585516872,0.05573541,132.9,132.88,0.04758051]
[1763585518379,0.05573541,132.9,132.88,3.26758051]
[1763585518574,0.05573541,132.9,132.88,0.04758051]
[1763585520466,0.05573541,132.9,132.88,3.26758051]
[1763585520871,0.05573541,132.9,132.88,0.04758051]
[1763585521579,6.83563541,132.9,132.88,0.04758051]
[1763585522076,0.05573541,132.9,132.83,3.22]
[1763585522278,105.52123541,132.9,132.83,3.22]
[1763585522878,105.52123541,132.9,132.85,0.0543464]
[1763585523078,0.05573541,132.9,132.85,0.0543464]
[1763585523975,6.7802,132.89,132.85,0.0543464]
[1763585524479,0.05573541,132.9,132.85,3.2743464]
[1763585524781,0.05573541,132.9,132.85,0.0543464]
[1763585524968,6.7807,132.88,132.85,0.0543464]
[1763585525173,0.05573541,132.9,132.85,0.0543464]
[1763585525479,6.7803,132.89,132.85,3.2743464]
[1763585525669,0.05573541,132.9,132.85,3.2743464]
[1763585526176,6.7803,132.89,132.85,3.2743464]
[1763585526379,0.05573541,132.9,132.85,0.0543464]
[1763585526881,6.7808,132.88,132.85,0.0543464]
[1763585527576,0.05573541,132.9,132.85,0.0543464]
[1763585527577,6.83573541,132.9,132.85,3.2743464]
[1763585527775,0.05573541,132.9,132.85,3.2743464]
[1763585528281,6.7802,132.89,132.85,3.2743464]
[1763585529781,0.05573541,132.9,132.85,3.2743464]
[1763585530281,6.80117396,133.0,132.89,3.34]
[1763585530479,6.80117396,133.03,132.92,3.34]
[1763585530682,15.92,133.02,132.96,3.34]
[1763585530875,6.80117396,133.05,132.96,3.34]
[1763585531182,15.92,133.03,132.96,3.34]
[1763585531385,0.05581439,133.02,132.99,0.05332372]
[1763585532683,6.82961439,133.02,132.99,0.05332372]
[1763585532879,0.05581439,133.02,132.99,0.05332372]
[1763585533079,105.3748,133.01,132.99,0.05332372]
[1763585533281,112.149,133.01,132.99,0.05332372]
[1763585533476,105.3748,133.01,132.92,3.34]
[1763585533686,105.3904,132.99,132.92,3.34]
[1763585533887,15.92,132.98,132.87,3.34]
[1763585534074,15.92,132.98,132.89,3.34]
[1763585534278,6.7763,132.97,132.89,3.34]
[1763585534481,6.7763,132.97,132.92,0.04942108]
[1763585534781,6.7741,133.01,132.92,3.38942108]
[1763585534975,6.7741,133.01,132.92,3.34]
[1763585535375,15.92,133.02,132.93,3.34]
[1763585535784,0.05467556,132.99,132.97,3.34]
[1763585536692,0.05467556,132.99,132.96,0.05609895]
[1763585537278,6.82987556,132.99,132.96,0.05609895]
[1763585537790,6.7758,132.98,132.96,0.05609895]
[1763585538989,15.99467556,132.99,132.96,0.05609895]
[1763585540189,22.76987556,132.99,132.96,0.05609895]
[1763585540385,15.99467556,132.99,132.96,0.05609895]
[1763585541088,22.76987556,132.99,132.96,0.05609895]
[1763585541288,15.99467556,132.99,132.96,0.05609895]
[1763585541685,6.7758,132.98,132.96,0.05609895]
[1763585541986,15.99467556,132.99,132.96,0.05609895]
[1763585542190,121.38787556,132.99,132.92,3.34]
[1763585542388,112.20087396,132.98,132.89,10.12]
[1763585542583,105.4063,132.97,132.89,10.12]
[1763585542895,6.7782,132.93,132.89,3.34]
[1763585543283,0.04854438,132.92,132.9,0.05527257]
[1763585543685,0.04854438,132.92,132.9,3.39527257]
[1763585544896,15.92,132.96,132.9,3.39527257]
[1763585545084,15.92,132.96,132.9,3.34]
[1763585545496,6.7764,132.97,132.9,3.34]
[1763585545884,0.05076608,132.95,132.93,3.25]
[1763585548298,0.05076608,132.95,132.92,3.30374455]
[1763585548489,0.05076608,132.95,132.92,0.05374455]
[1763585548798,0.05076608,132.95,132.92,3.30374455]
[1763585549294,0.05076608,132.95,132.93,3.25]
[1763585549496,1.30927971,133.0,132.93,3.25]
[1763585549694,6.80117396,133.05,132.98,3.25]
[1763585550002,1.30898422,133.03,132.98,3.25]
[1763585550395,8.08218422,133.03,132.98,3.25]
[1763585550596,8.08218422,133.03,132.99,0.05240243]
[1763585551001,6.7737,133.02,132.99,0.05240243]
[1763585551199,105.3676,133.02,132.99,0.05240243]
[1763585551703,1.30898422,133.03,132.99,0.05240243]
[1763585551997,105.3748,133.01,132.91,3.25]
[1763585552301,105.3824,133.0,132.91,3.25]
[1763585552491,112.19217396,132.99,132.91,3.25]
[1763585552694,6.7767,132.96,132.91,3.25]
[1763585553091,0.05756021,132.95,132.92,0.05247777]
[1763585554098,105.48266021,132.95,132.85,3.25]
[1763585554301,105.4251,132.95,132.85,3.25]
[1763585554701,105.4381,132.93,132.86,3.25]
[1763585555003,121.3581,132.93,132.81,3.25]
[1763585555196,0.05137248,132.88,132.86,3.30518041]
[1763585555398,0.05434344,132.88,132.86,3.30518041]
[1763585555905,15.92,132.93,132.86,3.30518041]
[1763585556299,22.6983,132.93,132.86,3.30518041]
[1763585557008,0.04770914,132.91,132.86,3.30518041]
[1763585559599,6.7803,132.89,132.86,0.05518041]
[1763585559804,0.04770914,132.91,132.86,0.05518041]
[1763585560304,6.82720914,132.91,132.86,3.28518041]
[1763585561013,0.04770914,132.91,132.86,0.05518041]
[1763585561612,6.7798,132.9,132.86,0.05518041]
[1763585561814,0.04770914,132.91,132.86,0.05518041]
[1763585562015,0.04770914,132.91,132.86,3.28518041]
[1763585562916,0.04770914,132.91,132.88,3.23]
[1763585564226,6.82690914,132.91,132.88,3.23]
[1763585564819,6.82690914,132.91,132.86,3.28518041]
[1763585565019,0.04770914,132.91,132.86,0.05518041]
[1763585565829,0.04770914,132.91,132.86,3.28518041]
[1763585566126,6.7804,132.89,132.86,3.28518041]
[1763585566323,6.7804,132.89,132.86,0.05518041]
[1763585567022,105.50560914,132.91,132.86,0.05518041]
[1763585567422,6.7804,132.89,132.86,0.05518041]
[1763585569026,6.7807,132.88,132.86,0.05518041]
[1763585569226,6.83350448,132.88,132.86,0.05518041]
[1763585570126,0.05280448,132.88,132.86,0.05518041]
[1763585570322,0.05280448,132.88,132.86,3.28518041]
[1763585570921,0.05280448,132.88,132.86,10.06658041]
[1763585571230,0.00280448,132.88,132.87,3.23]
[1763585576636,0.00280448,132.88,132.87,10.0112]
[1763585581735,0.00280448,132.88,132.87,3.23]
[1763585583238,0.00280448,132.88,132.86,3.28518041]
[1763585584840,0.00280448,132.88,132.87,10.0112]
[1763585587641,0.00280448,132.88,132.87,25.9112]
[1763585588046,0.00280448,132.88,132.87,38.0667818]
[1763585588250,11.96456602,133.03,132.96,3.04]
[1763585588546,105.3682,133.02,132.93,18.94]
[1763585588847,6.7747,133.0,132.95,3.04]
[1763585589050,117.32596602,133.03,132.95,3.04]
[1763585589247,6.7747,133.0,132.96,3.04]
[1763585589453,105.3691,133.02,132.97,0.05308941]
[1763585589642,105.3916,132.99,132.93,3.04]
[1763585590146,6.7764,132.97,132.93,3.04]
[1763585590348,117.32566602,133.03,132.93,3.04]
[1763585590542,105.3672,133.02,132.97,0.05265562]
[1763585590748,0.05020194,132.99,132.97,0.05265562]
[1763585590948,6.82540194,132.99,132.97,0.05265562]
[1763585592052,0.05020194,132.99,132.97,0.05265562]
[1763585593152,0.05020194,132.99,132.97,3.09265562]
[1763585595756,0.05020194,132.99,132.97,0.05265562]
[1763585596456,6.82540194,132.99,132.97,0.05265562]
[1763585597157,8.32540194,132.99,132.97,0.00265562]
[1763585599669,6.82540194,132.99,132.97,0.00265562]
[1763585604364,6.7755,132.98,132.97,0.00265562]
[1763585610377,6.7755,132.98,132.87,3.11]
[1763585610378,6.7785,132.93,132.87,3.11]
[1763585610677,121.3045,132.95,132.87,3.11]
[1763585611077,6.7786,132.92,132.87,3.11]
[1763585611266,0.05262952,132.91,132.89,3.11]
[1763585611473,0.04790604,132.91,132.88,3.15941175]
[1763585611776,6.82710604,132.91,132.88,3.15941175]
[1763585612575,0.04790604,132.91,132.88,3.15941175]
[1763585613886,0.04790604,132.91,132.88,0.04941175]
[1763585615280,0.04790604,132.91,132.88,3.15941175]
[1763585616480,0.04790604,132.91,132.89,3.11]
[1763585619380,0.04790604,132.91,132.89,9.89]
[1763585620685,0.04790604,132.91,132.9,3.03]
[1763585621280,2.85734729,132.94,132.91,3.03]
[1763585621680,118.901,133.04,132.91,108.4807]
[1763585621887,2.85734729,133.0,132.96,3.03]
[1763585622291,0.05060683,132.99,132.98,3.03]
[1763585623482,0.05060683,132.99,132.97,0.05161886]
[1763585623685,0.05060683,132.99,132.97,3.08161886]
[1763585625586,0.05060683,132.99,132.98,3.03]
[1763585626182,105.3064,133.1,133.01,3.03]
[1763585626382,22.67471775,133.08,133.01,3.03]
[1763585626680,23.98320979,133.08,133.02,3.03]
[1763585626887,22.67471775,133.08,133.02,3.03]
[1763585627076,29.44531775,133.08,133.04,0.05541402]
[1763585627277,22.67471775,133.08,133.04,0.05541402]
[1763585627487,105.3284,133.07,133.04,0.05541402]
[1763585627983,6.7718,133.06,133.04,0.05541402]
[1763585628185,6.79471775,133.05,132.98,3.03]
[1763585629190,0.0513539,133.03,133.0,0.05205046]
[1763585629689,0.0513539,133.03,133.0,3.08205046]
[1763585631089,6.8244539,133.03,133.0,3.08205046]
[1763585631481,0.0513539,133.03,133.0,3.08205046]
[1763585634187,0.0513539,133.03,133.0,9.85645046]
[1763585634382,0.0513539,133.03,133.0,3.08205046]
[1763585635293,0.0513539,133.03,133.0,0.05205046]
[1763585635490,6.7737,133.02,133.0,0.05205046]
[1763585636691,0.0513539,133.03,133.0,3.08205046]
[1763585637195,6.8243539,133.03,133.0,3.08205046]
[1763585638390,6.7736,133.02,133.0,0.05205046]
[1763585640294,6.7752,132.99,132.94,3.03]
[1763585640494,6.79471775,133.02,132.94,3.03]
[1763585640684,105.3837,133.0,132.9,3.03]
[1763585640887,105.4029,132.98,132.9,3.03]
[1763585641288,0.05734966,132.95,132.93,3.08685982]
[1763585641491,0.05632535,132.95,132.93,3.08685982]
[1763585642796,0.05632535,132.95,132.93,0.05685982]
[1763585643788,0.05632535,132.95,132.9,3.03]
[1763585644796,0.05632535,132.95,132.91,3.08156792]
[1763585645194,2.85589503,132.94,132.91,3.08156792]
[1763585645992,9.63359503,132.94,132.91,3.08156792]
[1763585646196,2.85589503,132.92,132.91,0.05156792]
[1763585646898,2.85589503,132.92,132.88,3.03]
[1763585647393,9.63459503,132.92,132.88,3.03]
[1763585647599,2.85589503,132.92,132.88,3.03]
[1763585647799,2.85589503,132.94,132.88,3.03]
[1763585648001,0.05247814,132.92,132.9,3.4022709]
[1763585650403,2.85589503,132.98,132.92,3.35]
[1763585650602,2.85589503,132.96,132.92,3.35]
[1763585651404,0.05172036,132.95,132.93,0.05214661]
[1763585653906,6.82882036,132.95,132.93,0.05214661]
[1763585654206,2.85589503,132.94,132.88,3.35]
[1763585654901,18.73589503,132.96,132.89,3.35]
[1763585655102,0.04830369,132.94,132.92,3.35]
[1763585659810,0.04830369,132.94,132.93,3.35]
[1763585662712,2.85589503,132.99,132.93,3.35]
[1763585663212,2.85589503,132.99,132.94,6.7776]
[1763585663411,2.85589503,132.99,132.95,3.35]
[1763585663615,0.0517068,132.98,132.96,0.05524376]
[1763585663816,6.7763,132.97,132.96,0.04979064]
[1763585664516,9.63219503,132.97,132.96,0.04979064]
[1763585665712,2.85589503,132.97,132.96,0.04979064]
[1763585667225,9.63199503,132.97,132.96,0.04979064]
[1763585668324,2.85589503,132.97,132.91,3.31]
[1763585668718,6.7766,132.96,132.91,3.31]
[1763585668919,2.85589503,132.97,132.91,3.31]
[1763585669321,0.05682997,132.95,132.94,3.31]
[1763585670326,105.32,133.08,132.96,3.31]
[1763585670528,15.88,133.08,132.97,3.31]
[1763585670730,2.85589503,133.03,132.97,3.31]
[1763585671225,0.0495962,133.01,133.0,3.31]
[1763585672115,121.2038,133.08,133.0,3.31]
[1763585672116,2.85589503,133.07,133.0,3.31]
[1763585673030,2.85589503,133.07,133.01,3.31]
[1763585673225,0.04772776,133.05,133.03,3.31]
[1763585673726,2.85589503,133.11,133.05,3.31]
[1763585674031,18.73589503,133.14,133.07,3.31]
[1763585674230,15.88,133.14,133.07,3.31]